[Event "Titled Tuesday Blitz May 2 Early 2023"]
[White "Djokic, Mihailo"]
[Black "Bychkov, Vladimir"]
[WhiteFideId "976440"]
[BlackFideId "24151513"]
[WhiteElo "2294"]
[BlackElo "2224"]
[Result "1-0"]
[Round "08"]
[TimeControl "180+2"]
[Date "2023.05.02"]
[WhiteClock "0:01:11"]
[BlackClock "0:00:40"]

1. e4 {[%clk 0:03:00]}  c6 {[%clk 0:02:59]} 2. d4 {[%clk 0:03:01]}  d5 {[%clk 0:03:00]} 3. e5 {[%clk 0:03:00]}  Bf5 {[%clk 0:03:00]} 4. h4 {[%clk 0:03:01]}  h5 {[%clk 0:03:00]} 5. Bg5 {[%clk 0:03:01]}  Qa5+ {[%clk 0:02:57]} 6. Nd2 {[%clk 0:02:59]}  Nd7 {[%clk 0:02:50]} 7. c3 {[%clk 0:02:55]}  e6 {[%clk 0:02:49]} 8. Ne2 {[%clk 0:02:54]}  Ne7 {[%clk 0:02:47]} 9. Ng3 {[%clk 0:02:54]}  Bg6 {[%clk 0:02:46]} 10. Be2 {[%clk 0:02:52]}  f6 {[%clk 0:02:41]} 11. exf6 {[%clk 0:02:48]}  gxf6 {[%clk 0:02:41]} 12. Be3 {[%clk 0:02:48]}  O-O-O {[%clk 0:02:32]} 13. Bxh5 {[%clk 0:02:20]}  e5 {[%clk 0:02:21]} 14. Bxg6 {[%clk 0:02:14]}  Nxg6 {[%clk 0:02:22]} 15. h5 {[%clk 0:02:15]}  Nf4 {[%clk 0:02:22]} 16. Bxf4 {[%clk 0:02:12]}  exf4 {[%clk 0:02:23]} 17. Nf5 {[%clk 0:02:12]}  Qa6 {[%clk 0:02:20]} 18. Qe2 {[%clk 0:02:10]}  Qb6 {[%clk 0:02:10]} 19. O-O-O {[%clk 0:02:10]}  a5 {[%clk 0:02:01]} 20. a4 {[%clk 0:01:58]}  Bh6 {[%clk 0:01:30]} 21. Kc2 {[%clk 0:01:30]}  Rde8 {[%clk 0:01:26]} 22. Nd6+ {[%clk 0:01:30]}  Kd8 {[%clk 0:01:27]} 23. Nxe8 {[%clk 0:01:30]}  Rxe8 {[%clk 0:01:28]} 24. Qd3 {[%clk 0:01:29]}  f3 {[%clk 0:01:26]} 25. Nxf3 {[%clk 0:01:28]}  Re4 {[%clk 0:01:20]} 26. Nd2 {[%clk 0:01:25]}  Rg4 {[%clk 0:01:16]} 27. g3 {[%clk 0:01:24]}  c5 {[%clk 0:01:12]} 28. dxc5 {[%clk 0:01:22]}  Qxc5 {[%clk 0:01:08]} 29. f4 {[%clk 0:01:18]}  f5 {[%clk 0:00:55]} 30. Nb3 {[%clk 0:01:17]}  Qf2+ {[%clk 0:00:55]} 31. Rd2 {[%clk 0:01:17]}  Qxg3 {[%clk 0:00:54]} 32. Qxd5 {[%clk 0:01:16]}  Rg7 {[%clk 0:00:52]} 33. Nc5 {[%clk 0:01:15]}  Bxf4 {[%clk 0:00:44]} 34. Ne6+ {[%clk 0:01:15]}  Kc8 {[%clk 0:00:43]} 35. Qc4+ {[%clk 0:01:14]}  Kb8 {[%clk 0:00:42]} 36. Nxf4 {[%clk 0:01:13]}  Ne5 {[%clk 0:00:39]} 37. Qd4 {[%clk 0:01:10]}  Nf3 {[%clk 0:00:39]} 38. Qd8+ {[%clk 0:01:10]}  Ka7 {[%clk 0:00:40]} 39. Qxa5+ {[%clk 0:01:11]} 1-0


[Site "https://www.chess.com"]

[Event "Titled Tuesday Blitz May 2 Early 2023"]
[White "Manukyan, Artyom"]
[Black "Baskin, Robert"]
[WhiteFideId "13305786"]
[BlackFideId "24662402"]
[WhiteElo "2078"]
[BlackElo "2472"]
[Result "1-0"]
[Round "08"]
[TimeControl "180+2"]
[Date "2023.05.02"]
[WhiteClock "0:00:15"]
[BlackClock "0:00:07"]

1. e4 {[%clk 0:02:57]}  c5 {[%clk 0:02:54]} 2. Nc3 {[%clk 0:02:57]}  Nc6 {[%clk 0:02:54]} 3. Bb5 {[%clk 0:02:57]}  Nd4 {[%clk 0:02:53]} 4. Nf3 {[%clk 0:02:57]}  a6 {[%clk 0:02:53]} 5. Bd3 {[%clk 0:02:57]}  g6 {[%clk 0:02:53]} 6. Rb1 {[%clk 0:02:52]}  Nc6 {[%clk 0:02:46]} 7. a3 {[%clk 0:02:51]}  Bg7 {[%clk 0:02:45]} 8. O-O {[%clk 0:02:51]}  d6 {[%clk 0:02:43]} 9. h3 {[%clk 0:02:51]}  e6 {[%clk 0:02:32]} 10. b4 {[%clk 0:02:51]}  b5 {[%clk 0:02:29]} 11. Be2 {[%clk 0:02:43]}  Nge7 {[%clk 0:02:28]} 12. Bb2 {[%clk 0:02:37]}  O-O {[%clk 0:02:22]} 13. Re1 {[%clk 0:02:16]}  e5 {[%clk 0:02:16]} 14. Ba1 {[%clk 0:02:11]}  h6 {[%clk 0:02:14]} 15. Nd5 {[%clk 0:02:10]}  Nxd5 {[%clk 0:02:14]} 16. exd5 {[%clk 0:02:10]}  Nd4 {[%clk 0:02:14]} 17. Nxd4 {[%clk 0:02:09]}  cxd4 {[%clk 0:02:13]} 18. c3 {[%clk 0:02:08]}  Bf5 {[%clk 0:01:48]} 19. Rc1 {[%clk 0:01:57]}  d3 {[%clk 0:01:05]} 20. Bf1 {[%clk 0:01:57]}  h5 {[%clk 0:00:59]} 21. Re3 {[%clk 0:01:55]}  e4 {[%clk 0:00:58]} 22. f3 {[%clk 0:01:52]}  Bh6 {[%clk 0:00:55]} 23. Rxe4 {[%clk 0:01:47]}  Bxe4 {[%clk 0:00:55]} 24. fxe4 {[%clk 0:01:48]}  Qg5 {[%clk 0:00:51]} 25. Bxd3 {[%clk 0:01:46]}  Qxd2 {[%clk 0:00:49]} 26. Qxd2 {[%clk 0:01:47]}  Bxd2 {[%clk 0:00:49]} 27. Rd1 {[%clk 0:01:46]}  Bf4 {[%clk 0:00:48]} 28. c4 {[%clk 0:01:45]}  bxc4 {[%clk 0:00:46]} 29. Bxc4 {[%clk 0:01:46]}  Rfc8 {[%clk 0:00:46]} 30. Bf1 {[%clk 0:01:43]}  Rc1 {[%clk 0:00:38]} 31. Rxc1 {[%clk 0:01:40]}  Bxc1 {[%clk 0:00:39]} 32. a4 {[%clk 0:01:40]}  Bd2 {[%clk 0:00:37]} 33. b5 {[%clk 0:01:39]}  a5 {[%clk 0:00:34]} 34. e5 {[%clk 0:01:36]}  Bb4 {[%clk 0:00:23]} 35. exd6 {[%clk 0:01:33]}  Bxd6 {[%clk 0:00:24]} 36. Bd4 {[%clk 0:01:33]}  Re8 {[%clk 0:00:23]} 37. Bd3 {[%clk 0:01:22]}  Bg3 {[%clk 0:00:23]} 38. Bf2 {[%clk 0:00:47]}  h4 {[%clk 0:00:22]} 39. Kf1 {[%clk 0:00:19]}  Rc8 {[%clk 0:00:20]} 40. Be3 {[%clk 0:00:17]}  Rc3 {[%clk 0:00:19]} 41. Ke2 {[%clk 0:00:17]}  Rb3 {[%clk 0:00:16]} 42. b6 {[%clk 0:00:16]}  Bd6 {[%clk 0:00:12]} 43. Bb5 {[%clk 0:00:16]}  Kf8 {[%clk 0:00:12]} 44. b7 {[%clk 0:00:16]}  Bb8 {[%clk 0:00:12]} 45. Bc5+ {[%clk 0:00:15]}  Kg7 {[%clk 0:00:10]} 46. d6 {[%clk 0:00:15]}  Kf6 {[%clk 0:00:09]} 47. d7 {[%clk 0:00:15]}  Rb2+ {[%clk 0:00:09]} 48. Kd3 {[%clk 0:00:15]}  Bc7 {[%clk 0:00:07]} 49. b8=Q {[%clk 0:00:15]}  Bxb8 {[%clk 0:00:07]} 50. d8=Q+ {[%clk 0:00:15]} 1-0


[Site "https://www.chess.com"]

[Event "Titled Tuesday Blitz May 2 Early 2023"]
[White "Srebrnic, Marko"]
[Black "Girish, A. Koushik"]
[WhiteFideId "14603616"]
[BlackFideId "5038448"]
[WhiteElo "2341"]
[BlackElo "2398"]
[Result "0-1"]
[Round "08"]
[TimeControl "180+2"]
[Date "2023.05.02"]
[WhiteClock "0:00:08"]
[BlackClock "0:00:09"]

1. e4 {[%clk 0:03:00]}  e5 {[%clk 0:02:59]} 2. Nc3 {[%clk 0:02:59]}  Nf6 {[%clk 0:02:53]} 3. Bc4 {[%clk 0:02:57]}  Nc6 {[%clk 0:02:50]} 4. d3 {[%clk 0:02:56]}  Na5 {[%clk 0:02:50]} 5. Qf3 {[%clk 0:02:55]}  Nxc4 {[%clk 0:02:26]} 6. dxc4 {[%clk 0:02:55]}  Bb4 {[%clk 0:02:26]} 7. Ne2 {[%clk 0:02:52]}  O-O {[%clk 0:02:15]} 8. Bg5 {[%clk 0:02:49]}  Be7 {[%clk 0:02:15]} 9. O-O-O {[%clk 0:02:40]}  d6 {[%clk 0:02:14]} 10. c5 {[%clk 0:02:35]}  Be6 {[%clk 0:02:13]} 11. h3 {[%clk 0:02:20]}  b6 {[%clk 0:02:05]} 12. cxd6 {[%clk 0:01:48]}  cxd6 {[%clk 0:02:06]} 13. Ng3 {[%clk 0:01:40]}  g6 {[%clk 0:01:57]} 14. Qd3 {[%clk 0:01:28]}  Rc8 {[%clk 0:01:34]} 15. Bxf6 {[%clk 0:00:59]}  Bxf6 {[%clk 0:01:35]} 16. Qxd6 {[%clk 0:01:00]}  Bg5+ {[%clk 0:01:35]} 17. Kb1 {[%clk 0:01:00]}  Qf6 {[%clk 0:01:34]} 18. Rhf1 {[%clk 0:00:36]}  Rc5 {[%clk 0:01:23]} 19. Nd5 {[%clk 0:00:26]}  Qg7 {[%clk 0:01:20]} 20. Ne7+ {[%clk 0:00:18]}  Kh8 {[%clk 0:01:17]} 21. c3 {[%clk 0:00:08]}  h5 {[%clk 0:01:04]} 22. Ne2 {[%clk 0:00:06]}  Re8 {[%clk 0:00:50]} 23. Nc6 {[%clk 0:00:06]}  a5 {[%clk 0:00:44]} 24. f4 {[%clk 0:00:04]}  exf4 {[%clk 0:00:43]} 25. Nxf4 {[%clk 0:00:05]}  Bc4 {[%clk 0:00:40]} 26. Rf2 {[%clk 0:00:02]}  Rxe4 {[%clk 0:00:32]} 27. g3 {[%clk 0:00:02]}  Kh7 {[%clk 0:00:28]} 28. Ne7 {[%clk 0:00:02]}  Bxe7 {[%clk 0:00:27]} 29. Qd2 {[%clk 0:00:01]}  Rce5 {[%clk 0:00:24]} 30. h4 {[%clk 0:00:02]}  Bc5 {[%clk 0:00:23]} 31. Rg2 {[%clk 0:00:01]}  Be3 {[%clk 0:00:22]} 32. Qd8 {[%clk 0:00:02]}  Bxf4 {[%clk 0:00:21]} 33. gxf4 {[%clk 0:00:02]}  Re2 {[%clk 0:00:21]} 34. Rxe2 {[%clk 0:00:02]}  Rxe2 {[%clk 0:00:22]} 35. Qxb6 {[%clk 0:00:01]}  a4 {[%clk 0:00:20]} 36. Qd4 {[%clk 0:00:01]}  Qxd4 {[%clk 0:00:18]} 37. Rxd4 {[%clk 0:00:02]}  Re4 {[%clk 0:00:17]} 38. Rxe4 {[%clk 0:00:02]}  Bd3+ {[%clk 0:00:18]} 39. Kc1 {[%clk 0:00:02]}  Bxe4 {[%clk 0:00:18]} 40. b4 {[%clk 0:00:03]}  axb3 {[%clk 0:00:17]} 41. axb3 {[%clk 0:00:04]}  Kg7 {[%clk 0:00:18]} 42. Kd2 {[%clk 0:00:04]}  Kf6 {[%clk 0:00:18]} 43. Ke3 {[%clk 0:00:04]}  Bc2 {[%clk 0:00:16]} 44. b4 {[%clk 0:00:05]}  Ke6 {[%clk 0:00:17]} 45. c4 {[%clk 0:00:05]}  Bb3 {[%clk 0:00:16]} 46. Kd4 {[%clk 0:00:05]}  f6 {[%clk 0:00:16]} 47. b5 {[%clk 0:00:05]}  Ba4 {[%clk 0:00:15]} 48. Kc5 {[%clk 0:00:05]}  g5 {[%clk 0:00:14]} 49. b6 {[%clk 0:00:05]}  Kd7 {[%clk 0:00:13]} 50. fxg5 {[%clk 0:00:06]}  fxg5 {[%clk 0:00:13]} 51. hxg5 {[%clk 0:00:07]}  h4 {[%clk 0:00:13]} 52. g6 {[%clk 0:00:07]}  Bc2 {[%clk 0:00:12]} 53. g7 {[%clk 0:00:08]}  Bh7 {[%clk 0:00:13]} 54. Kb5 {[%clk 0:00:05]}  Kc8 {[%clk 0:00:10]} 55. c5 {[%clk 0:00:06]}  h3 {[%clk 0:00:10]} 56. c6 {[%clk 0:00:07]}  h2 {[%clk 0:00:10]} 57. Ka6 {[%clk 0:00:07]}  h1=Q {[%clk 0:00:09]} 58. b7+ {[%clk 0:00:08]}  Kc7 {[%clk 0:00:09]} 59. Ka7 {[%clk 0:00:08]}  Qa1# {[%clk 0:00:09]} 0-1


[Site "https://www.chess.com"]

[Event "Titled Tuesday Blitz May 2 Early 2023"]
[White "Dinu, Dumitru-Daniel"]
[Black "Girya, Olga"]
[WhiteFideId "1208403"]
[BlackFideId "4195752"]
[WhiteElo "2240"]
[BlackElo "2263"]
[Result "1/2-1/2"]
[Round "08"]
[TimeControl "180+2"]
[Date "2023.05.02"]
[WhiteClock "0:00:08"]
[BlackClock "0:00:04"]

1. e4 {[%clk 0:03:00]}  e5 {[%clk 0:02:59]} 2. Nf3 {[%clk 0:03:00]}  Nc6 {[%clk 0:02:59]} 3. Bb5 {[%clk 0:03:01]}  a6 {[%clk 0:02:59]} 4. Ba4 {[%clk 0:03:01]}  Nf6 {[%clk 0:03:00]} 5. d3 {[%clk 0:03:01]}  Bc5 {[%clk 0:02:59]} 6. Nc3 {[%clk 0:02:56]}  d6 {[%clk 0:02:54]} 7. Bg5 {[%clk 0:02:51]}  h6 {[%clk 0:02:52]} 8. Bh4 {[%clk 0:02:51]}  b5 {[%clk 0:02:28]} 9. Bb3 {[%clk 0:02:50]}  Be6 {[%clk 0:02:28]} 10. Nd5 {[%clk 0:02:37]}  g5 {[%clk 0:02:13]} 11. Bg3 {[%clk 0:01:29]}  Bxd5 {[%clk 0:01:29]} 12. exd5 {[%clk 0:01:30]}  Nd4 {[%clk 0:01:28]} 13. Nxd4 {[%clk 0:01:28]}  Bxd4 {[%clk 0:01:25]} 14. c3 {[%clk 0:01:28]}  Bb6 {[%clk 0:01:25]} 15. a4 {[%clk 0:01:25]}  Rb8 {[%clk 0:01:07]} 16. axb5 {[%clk 0:01:19]}  axb5 {[%clk 0:01:08]} 17. h4 {[%clk 0:01:11]}  g4 {[%clk 0:01:01]} 18. Qe2 {[%clk 0:01:03]}  h5 {[%clk 0:00:59]} 19. d4 {[%clk 0:00:59]}  O-O {[%clk 0:00:15]} 20. dxe5 {[%clk 0:00:58]}  dxe5 {[%clk 0:00:08]} 21. O-O-O {[%clk 0:00:57]}  Re8 {[%clk 0:00:07]} 22. Qd2 {[%clk 0:00:48]}  Nd7 {[%clk 0:00:07]} 23. d6 {[%clk 0:00:41]}  Nc5 {[%clk 0:00:06]} 24. Bd5 {[%clk 0:00:37]}  Qxd6 {[%clk 0:00:04]} 25. Qg5+ {[%clk 0:00:35]}  Kf8 {[%clk 0:00:04]} 26. Qxh5 {[%clk 0:00:32]}  Qg6 {[%clk 0:00:04]} 27. Qh8+ {[%clk 0:00:29]}  Qg8 {[%clk 0:00:04]} 28. Qh6+ {[%clk 0:00:21]}  Qg7 {[%clk 0:00:04]} 29. Qc6 {[%clk 0:00:20]}  Rbd8 {[%clk 0:00:03]} 30. h5 {[%clk 0:00:18]}  Rd6 {[%clk 0:00:03]} 31. Qxb5 {[%clk 0:00:17]}  Red8 {[%clk 0:00:03]} 32. c4 {[%clk 0:00:16]}  c6 {[%clk 0:00:04]} 33. Qxb6 {[%clk 0:00:15]}  cxd5 {[%clk 0:00:03]} 34. Qxc5 {[%clk 0:00:15]}  Qg5+ {[%clk 0:00:04]} 35. Kb1 {[%clk 0:00:14]}  Kg8 {[%clk 0:00:04]} 36. Rxd5 {[%clk 0:00:12]}  Qf5+ {[%clk 0:00:04]} 37. Kc1 {[%clk 0:00:11]}  Rxd5 {[%clk 0:00:03]} 38. cxd5 {[%clk 0:00:11]}  Rc8 {[%clk 0:00:04]} 39. Qxc8+ {[%clk 0:00:11]}  Qxc8+ {[%clk 0:00:05]} 40. Kb1 {[%clk 0:00:12]}  Qc4 {[%clk 0:00:05]} 41. Rd1 {[%clk 0:00:11]}  Qe4+ {[%clk 0:00:05]} 42. Kc1 {[%clk 0:00:09]}  Qc4+ {[%clk 0:00:05]} 43. Kb1 {[%clk 0:00:09]}  Qe2 {[%clk 0:00:04]} 44. Kc1 {[%clk 0:00:08]}  Qc4+ {[%clk 0:00:04]} 45. Kb1 {[%clk 0:00:08]} 1/2-1/2


[Site "https://www.chess.com"]

[Event "Titled Tuesday Blitz May 2 Early 2023"]
[White "Womacka, Mathias"]
[Black "Ismagilov, Damir"]
[WhiteFideId "4611390"]
[BlackFideId "34199982"]
[WhiteElo "2377"]
[BlackElo "2078"]
[Result "1-0"]
[Round "08"]
[TimeControl "180+2"]
[Date "2023.05.02"]
[WhiteClock "0:00:53"]
[BlackClock "0:00:58"]

1. e4 {[%clk 0:03:00]}  e6 {[%clk 0:02:59]} 2. d4 {[%clk 0:02:59]}  d5 {[%clk 0:02:59]} 3. Nd2 {[%clk 0:03:00]}  c5 {[%clk 0:02:56]} 4. exd5 {[%clk 0:02:59]}  Qxd5 {[%clk 0:02:57]} 5. Ngf3 {[%clk 0:02:59]}  cxd4 {[%clk 0:02:58]} 6. Bc4 {[%clk 0:02:59]}  Qd6 {[%clk 0:02:58]} 7. O-O {[%clk 0:02:58]}  Nf6 {[%clk 0:02:59]} 8. Nb3 {[%clk 0:02:58]}  Nc6 {[%clk 0:02:58]} 9. Nbxd4 {[%clk 0:02:58]}  Nxd4 {[%clk 0:02:58]} 10. Nxd4 {[%clk 0:02:59]}  a6 {[%clk 0:02:59]} 11. Re1 {[%clk 0:02:55]}  Qc7 {[%clk 0:02:58]} 12. Bf1 {[%clk 0:02:51]}  Bd6 {[%clk 0:02:57]} 13. Nf5 {[%clk 0:02:41]}  Bxh2+ {[%clk 0:02:47]} 14. Kh1 {[%clk 0:02:41]}  Kf8 {[%clk 0:02:47]} 15. g3 {[%clk 0:02:32]}  exf5 {[%clk 0:02:41]} 16. Bf4 {[%clk 0:02:31]}  Qc6+ {[%clk 0:02:34]} 17. Bg2 {[%clk 0:02:31]}  Qb6 {[%clk 0:02:27]} 18. Qd6+ {[%clk 0:02:17]}  Qxd6 {[%clk 0:02:26]} 19. Bxd6+ {[%clk 0:02:18]}  Kg8 {[%clk 0:02:27]} 20. Kxh2 {[%clk 0:02:18]}  h5 {[%clk 0:02:20]} 21. Re7 {[%clk 0:02:16]}  h4 {[%clk 0:02:18]} 22. Kg1 {[%clk 0:02:14]}  h3 {[%clk 0:02:10]} 23. Bxb7 {[%clk 0:02:12]}  Bxb7 {[%clk 0:02:10]} 24. Rxb7 {[%clk 0:02:11]}  h2+ {[%clk 0:02:11]} 25. Kg2 {[%clk 0:02:11]}  Ne4 {[%clk 0:02:11]} 26. Ba3 {[%clk 0:01:39]}  Nxf2 {[%clk 0:02:05]} 27. Kxf2 {[%clk 0:01:39]}  h1=Q {[%clk 0:02:05]} 28. Rxh1 {[%clk 0:01:39]}  Rxh1 {[%clk 0:02:04]} 29. c4 {[%clk 0:01:40]}  Rc1 {[%clk 0:01:56]} 30. c5 {[%clk 0:01:38]}  Re8 {[%clk 0:01:56]} 31. Rb6 {[%clk 0:01:30]}  Rc2+ {[%clk 0:01:56]} 32. Kf3 {[%clk 0:01:29]}  g5 {[%clk 0:01:51]} 33. Rxa6 {[%clk 0:01:23]}  Re4 {[%clk 0:01:51]} 34. g4 {[%clk 0:01:19]}  fxg4+ {[%clk 0:00:56]} 35. Kxe4 {[%clk 0:01:18]}  g3 {[%clk 0:00:57]} 36. Rd6 {[%clk 0:01:05]}  g2 {[%clk 0:00:57]} 37. Rd1 {[%clk 0:01:05]}  Rf2 {[%clk 0:00:58]} 38. Rg1 {[%clk 0:01:01]}  g4 {[%clk 0:00:58]} 39. c6 {[%clk 0:01:00]}  f5+ {[%clk 0:00:58]} 40. Kd3 {[%clk 0:00:53]} 1-0


[Site "https://www.chess.com"]

[Event "Titled Tuesday Blitz May 2 Early 2023"]
[White "Iskusnyh, Sergei"]
[Black "Khromkin, Andrey"]
[WhiteFideId "4120027"]
[BlackFideId "4154126"]
[WhiteElo "2492"]
[BlackElo "2191"]
[Result "1-0"]
[Round "08"]
[TimeControl "180+2"]
[Date "2023.05.02"]
[WhiteClock "0:00:12"]
[BlackClock "0:00:08"]

1. d4 {[%clk 0:02:55]}  d5 {[%clk 0:02:58]} 2. c4 {[%clk 0:02:55]}  dxc4 {[%clk 0:02:59]} 3. e3 {[%clk 0:02:54]}  e5 {[%clk 0:02:58]} 4. Bxc4 {[%clk 0:02:51]}  exd4 {[%clk 0:02:59]} 5. exd4 {[%clk 0:02:52]}  Bd6 {[%clk 0:02:59]} 6. Nf3 {[%clk 0:02:49]}  Nf6 {[%clk 0:02:59]} 7. O-O {[%clk 0:02:44]}  O-O {[%clk 0:02:59]} 8. Nc3 {[%clk 0:02:41]}  Nc6 {[%clk 0:02:59]} 9. Bg5 {[%clk 0:02:40]}  h6 {[%clk 0:02:59]} 10. Bh4 {[%clk 0:02:40]}  Bg4 {[%clk 0:02:59]} 11. a3 {[%clk 0:02:33]}  Bxf3 {[%clk 0:02:53]} 12. Qxf3 {[%clk 0:02:32]}  Nxd4 {[%clk 0:02:54]} 13. Qxb7 {[%clk 0:02:19]}  Nf5 {[%clk 0:02:53]} 14. Bxf6 {[%clk 0:02:03]}  Qxf6 {[%clk 0:02:53]} 15. Ne4 {[%clk 0:02:03]}  Qe5 {[%clk 0:02:43]} 16. Ng3 {[%clk 0:01:33]}  Rab8 {[%clk 0:02:11]} 17. Qxa7 {[%clk 0:01:23]}  Nxg3 {[%clk 0:02:09]} 18. hxg3 {[%clk 0:01:22]}  Bc5 {[%clk 0:02:06]} 19. Qa6 {[%clk 0:01:04]}  Rxb2 {[%clk 0:02:04]} 20. Ra2 {[%clk 0:01:00]}  Rxa2 {[%clk 0:01:25]} 21. Bxa2 {[%clk 0:01:01]}  Qxg3 {[%clk 0:01:14]} 22. a4 {[%clk 0:00:59]}  Qf4 {[%clk 0:00:51]} 23. Qc4 {[%clk 0:00:50]}  Bd4 {[%clk 0:00:30]} 24. a5 {[%clk 0:00:45]}  Rb8 {[%clk 0:00:27]} 25. Bb3 {[%clk 0:00:39]}  Rb4 {[%clk 0:00:23]} 26. Qd5 {[%clk 0:00:34]}  c6 {[%clk 0:00:19]} 27. Qd8+ {[%clk 0:00:31]}  Kh7 {[%clk 0:00:20]} 28. Bc2+ {[%clk 0:00:28]}  g6 {[%clk 0:00:20]} 29. Qe7 {[%clk 0:00:17]}  Be5 {[%clk 0:00:15]} 30. g3 {[%clk 0:00:14]}  Qf6 {[%clk 0:00:11]} 31. Qxb4 {[%clk 0:00:13]}  Bd4 {[%clk 0:00:10]} 32. Qb3 {[%clk 0:00:12]}  c5 {[%clk 0:00:09]} 33. Kg2 {[%clk 0:00:12]}  Qc6+ {[%clk 0:00:08]} 34. Qf3 {[%clk 0:00:12]} 1-0


[Site "https://www.chess.com"]

[Event "Titled Tuesday Blitz May 2 Early 2023"]
[White "Bayasgalan, Khishigbaatar"]
[Black "Ezat, Mohamed"]
[WhiteFideId "4904311"]
[BlackFideId "10600906"]
[WhiteElo "2057"]
[BlackElo "2386"]
[Result "1-0"]
[Round "08"]
[TimeControl "180+2"]
[Date "2023.05.02"]
[WhiteClock "0:00:04"]
[BlackClock "0:00:10"]

1. d4 {[%clk 0:03:00]}  Nf6 {[%clk 0:02:30]} 2. c4 {[%clk 0:02:59]}  d6 {[%clk 0:02:30]} 3. Nc3 {[%clk 0:02:59]}  g6 {[%clk 0:02:30]} 4. e4 {[%clk 0:02:58]}  Bg7 {[%clk 0:02:30]} 5. f4 {[%clk 0:02:59]}  O-O {[%clk 0:02:31]} 6. Nf3 {[%clk 0:02:59]}  c5 {[%clk 0:02:30]} 7. d5 {[%clk 0:02:59]}  e6 {[%clk 0:02:30]} 8. Be2 {[%clk 0:02:59]}  exd5 {[%clk 0:02:29]} 9. exd5 {[%clk 0:03:00]}  Re8 {[%clk 0:02:27]} 10. O-O {[%clk 0:03:00]}  Bg4 {[%clk 0:02:27]} 11. Bd3 {[%clk 0:03:01]}  a6 {[%clk 0:02:26]} 12. h3 {[%clk 0:02:59]}  Bxf3 {[%clk 0:02:25]} 13. Qxf3 {[%clk 0:02:59]}  Qa5 {[%clk 0:02:24]} 14. f5 {[%clk 0:02:55]}  Nbd7 {[%clk 0:02:23]} 15. Bf4 {[%clk 0:02:50]}  Ne5 {[%clk 0:02:22]} 16. Bxe5 {[%clk 0:02:50]}  Rxe5 {[%clk 0:02:22]} 17. fxg6 {[%clk 0:02:50]}  fxg6 {[%clk 0:02:20]} 18. Rae1 {[%clk 0:02:41]}  Rxe1 {[%clk 0:02:14]} 19. Rxe1 {[%clk 0:02:40]}  Nd7 {[%clk 0:02:07]} 20. Re6 {[%clk 0:02:15]}  Ne5 {[%clk 0:02:05]} 21. Qe2 {[%clk 0:02:10]}  Rd8 {[%clk 0:01:48]} 22. h4 {[%clk 0:01:13]}  b5 {[%clk 0:01:06]} 23. cxb5 {[%clk 0:01:06]}  axb5 {[%clk 0:01:06]} 24. Bxb5 {[%clk 0:01:04]}  Qb4 {[%clk 0:01:05]} 25. h5 {[%clk 0:00:49]}  Qh4 {[%clk 0:01:05]} 26. hxg6 {[%clk 0:00:43]}  hxg6 {[%clk 0:01:05]} 27. Qf2 {[%clk 0:00:17]}  Qh6 {[%clk 0:00:49]} 28. Be2 {[%clk 0:00:08]}  Rf8 {[%clk 0:00:48]} 29. Qg3 {[%clk 0:00:07]}  Qc1+ {[%clk 0:00:46]} 30. Kh2 {[%clk 0:00:05]}  Qxb2 {[%clk 0:00:38]} 31. Rxd6 {[%clk 0:00:05]}  Nf7 {[%clk 0:00:32]} 32. Rxg6 {[%clk 0:00:04]}  Ng5 {[%clk 0:00:10]} 33. Rxg5 {[%clk 0:00:03]}  Rf7 {[%clk 0:00:10]} 34. d6 {[%clk 0:00:03]}  Kf8 {[%clk 0:00:09]} 35. Bc4 {[%clk 0:00:03]}  Rd7 {[%clk 0:00:02]} 36. Rf5+ {[%clk 0:00:03]}  Ke8 {[%clk 0:00:03]} 37. Qe3+ {[%clk 0:00:03]}  Kd8 {[%clk 0:00:03]} 38. Qg5+ {[%clk 0:00:03]}  Kc8 {[%clk 0:00:04]} 39. Be6 {[%clk 0:00:01]}  Kb7 {[%clk 0:00:05]} 40. Bxd7 {[%clk 0:00:01]}  Bd4 {[%clk 0:00:05]} 41. Bc6+ {[%clk 0:00:01]}  Kb6 {[%clk 0:00:05]} 42. Qe7 {[%clk 0:00:01]}  Ka5 {[%clk 0:00:05]} 43. Qc7+ {[%clk 0:00:02]}  Kb4 {[%clk 0:00:06]} 44. Qb6+ {[%clk 0:00:02]}  Kxc3 {[%clk 0:00:06]} 45. Qxb2+ {[%clk 0:00:03]}  Kxb2 {[%clk 0:00:07]} 46. d7 {[%clk 0:00:03]}  Be5+ {[%clk 0:00:07]} 47. Rxe5 {[%clk 0:00:03]}  c4 {[%clk 0:00:08]} 48. d8=Q {[%clk 0:00:04]}  c3 {[%clk 0:00:09]} 49. Qb6+ {[%clk 0:00:04]}  Kc1 {[%clk 0:00:09]} 50. Re1+ {[%clk 0:00:04]}  Kc2 {[%clk 0:00:10]} 51. Qb5 {[%clk 0:00:03]}  Kd2 {[%clk 0:00:10]} 52. Qe2# {[%clk 0:00:04]} 1-0


[Site "https://www.chess.com"]

[Event "Titled Tuesday Blitz May 2 Early 2023"]
[White "Todorovic, Bojan"]
[Black "Berezin, Viktor"]
[WhiteFideId "917087"]
[BlackFideId "14107872"]
[WhiteElo "2266"]
[BlackElo "2310"]
[Result "1-0"]
[Round "08"]
[TimeControl "180+2"]
[Date "2023.05.02"]
[WhiteClock "0:01:06"]
[BlackClock "0:01:01"]

1. d4 {[%clk 0:02:59]}  Nf6 {[%clk 0:03:00]} 2. c4 {[%clk 0:02:58]}  g6 {[%clk 0:03:00]} 3. Nc3 {[%clk 0:02:57]}  Bg7 {[%clk 0:03:01]} 4. e4 {[%clk 0:02:57]}  O-O {[%clk 0:03:02]} 5. Be2 {[%clk 0:02:56]}  d6 {[%clk 0:03:02]} 6. Nf3 {[%clk 0:02:56]}  Nc6 {[%clk 0:03:02]} 7. O-O {[%clk 0:02:55]}  e5 {[%clk 0:03:02]} 8. d5 {[%clk 0:02:54]}  Ne7 {[%clk 0:03:02]} 9. Ne1 {[%clk 0:02:53]}  Ne8 {[%clk 0:03:02]} 10. Be3 {[%clk 0:02:52]}  f5 {[%clk 0:03:02]} 11. f3 {[%clk 0:02:52]}  f4 {[%clk 0:03:02]} 12. Bf2 {[%clk 0:02:51]}  g5 {[%clk 0:03:03]} 13. c5 {[%clk 0:02:51]}  h5 {[%clk 0:03:00]} 14. Rc1 {[%clk 0:02:50]}  Rf7 {[%clk 0:03:00]} 15. Nb5 {[%clk 0:02:47]}  a6 {[%clk 0:02:59]} 16. Na3 {[%clk 0:02:46]}  Bf8 {[%clk 0:02:58]} 17. Nc4 {[%clk 0:02:45]}  Rg7 {[%clk 0:02:52]} 18. cxd6 {[%clk 0:02:43]}  Nxd6 {[%clk 0:02:41]} 19. Nxe5 {[%clk 0:02:42]}  Ng6 {[%clk 0:02:38]} 20. Nxg6 {[%clk 0:02:39]}  Rxg6 {[%clk 0:02:39]} 21. Nd3 {[%clk 0:02:31]}  Bg7 {[%clk 0:02:22]} 22. Qc2 {[%clk 0:02:28]}  Nb5 {[%clk 0:02:15]} 23. Qc4 {[%clk 0:02:18]}  c6 {[%clk 0:01:48]} 24. dxc6+ {[%clk 0:02:17]}  Be6 {[%clk 0:01:48]} 25. Qa4 {[%clk 0:01:57]}  Nd4 {[%clk 0:01:34]} 26. Bxd4 {[%clk 0:01:42]}  Bxd4+ {[%clk 0:01:33]} 27. Kh1 {[%clk 0:01:41]}  b5 {[%clk 0:01:31]} 28. Qa3 {[%clk 0:01:34]}  Qc7 {[%clk 0:01:24]} 29. Nb4 {[%clk 0:01:26]}  g4 {[%clk 0:01:18]} 30. Nd5 {[%clk 0:01:24]}  Bxd5 {[%clk 0:01:17]} 31. exd5 {[%clk 0:01:24]}  Re8 {[%clk 0:01:07]} 32. Qd3 {[%clk 0:01:22]}  Qg7 {[%clk 0:01:05]} 33. c7 {[%clk 0:01:17]}  Rc8 {[%clk 0:01:01]} 34. Qf5 {[%clk 0:01:06]} 1-0


[Site "https://www.chess.com"]